bitfinex-derivatives/quotes_BNBF0:USTF0_20251010
["timestamp","ask_amount","ask_price","bid_price","bid_amount"]
[1760083797760,0.33246613,1263.9,1263.7,0.78614287]
[1760083798562,0.33246613,1263.9,1263.6,0.78614287]
[1760083798759,0.33246613,1263.9,1263.7,0.59010633]
[1760083799357,0.33246613,1263.9,1263.7,0.78614287]
[1760083800359,0.33246613,1263.9,1263.6,0.78614287]
[1760083801163,0.33246613,1263.9,1263.7,0.59010633]
[1760083801362,0.33246613,1263.9,1263.6,0.78614287]
[1760083801563,0.33246613,1263.9,1263.7,0.59010633]
[1760083801762,0.33246613,1263.9,1263.7,0.78614287]
[1760083802061,0.33246613,1263.9,1263.7,0.59010633]
[1760083803867,0.33246613,1263.9,1263.7,0.78614287]
[1760083805067,0.33246613,1263.9,1263.7,0.59010633]
[1760083806566,0.33246613,1263.9,1263.6,0.78614287]
[1760083806970,0.19483975,1263.8,1263.6,0.78614287]
[1760083807367,0.33246613,1263.9,1263.7,0.59010633]
[1760083807769,0.33246613,1263.9,1263.6,0.78614287]
[1760083808672,0.33246613,1263.9,1263.7,0.59010633]
[1760083809373,0.33246613,1263.9,1263.7,0.78614287]
[1760083810774,0.33246613,1263.9,1263.8,0.59010633]
[1760083811075,0.13762638,1263.9,1263.8,0.19603654]
[1760083813879,0.19483975,1264.1,1263.8,0.19603654]
[1760083814076,0.19483975,1264.2,1264.0,0.19603654]
[1760083814276,0.19483975,1264.2,1264.0,0.78553807]
[1760083814577,0.33247756,1264.3,1264.1,0.58950153]
[1760083814780,0.13763781,1264.3,1264.2,0.58950153]
[1760083815280,0.33247756,1264.3,1264.2,0.58950153]
[1760083815476,0.33247756,1264.3,1264.0,0.78553807]
[1760083815680,0.33247756,1264.3,1263.9,0.58950153]
[1760083815877,0.19483975,1264.1,1263.9,0.58950153]
[1760083816277,0.19483975,1264.1,1263.8,0.78553807]
[1760083816577,0.19483975,1264.1,1263.9,0.58950153]
[1760083816777,0.19483975,1264.0,1263.7,0.78553807]
[1760083818384,0.19483975,1264.0,1263.8,0.58950153]
[1760083818684,0.19483975,1264.0,1263.7,0.78553807]
[1760083818884,0.19483975,1263.9,1263.7,0.78553807]
[1760083819286,0.19483975,1263.9,1263.6,0.78553807]
[1760083819987,0.19483975,1263.7,1263.5,0.78553807]
[1760083820483,0.19483975,1263.7,1263.5,0.58950153]
[1760083820988,0.19483975,1263.7,1263.5,0.78553807]
[1760083821185,0.19483975,1263.9,1263.6,0.58950153]
[1760083821389,0.19483975,1263.9,1263.7,0.78553807]
[1760083821889,0.19483975,1263.9,1263.8,0.58950153]
[1760083822184,0.19483975,1264.0,1263.7,0.19603654]
[1760083822586,0.19483975,1264.0,1263.7,0.78594998]
[1760083822989,0.19483975,1264.0,1263.8,0.19603654]
[1760083823690,0.19483975,1264.0,1263.8,0.78594998]
[1760083825488,0.19483975,1264.2,1263.9,0.19603654]
[1760083825685,0.19483975,1264.1,1263.9,0.19603654]
[1760083826490,0.19483975,1264.2,1264.0,0.59018263]
[1760083826890,0.19483975,1264.2,1264.1,0.59018263]
[1760083827189,0.13763781,1264.3,1264.1,0.78612333]
[1760083827495,0.13763781,1264.3,1264.1,0.98215987]
[1760083827791,0.33247756,1264.3,1264.1,0.98215987]
[1760083827994,0.13763781,1264.3,1264.1,0.98215987]
[1760083828891,0.33247756,1264.3,1264.1,0.78628052]
[1760083829192,0.33247756,1264.3,1264.0,0.78628052]
[1760083829390,0.19483975,1264.2,1264.1,0.59024398]
[1760083832192,0.33247756,1264.3,1264.1,0.19603654]
[1760083832496,0.33247756,1264.3,1264.1,0.59065757]
[1760083832695,0.33247756,1264.3,1263.9,0.78669411]
[1760083832992,0.19483975,1264.1,1263.9,0.78669411]
[1760083833997,0.19483975,1264.1,1264.0,0.59065757]
[1760083834393,0.19483975,1264.1,1263.9,0.19603654]
[1760083834593,0.33247756,1264.3,1264.0,0.78612333]
[1760083834797,0.33247756,1264.3,1264.2,0.59070446]
[1760083835393,0.33247756,1264.3,1264.2,0.5906563]
[1760083836898,0.33247756,1264.3,1263.7,1.1749479]
[1760083836899,0.33247756,1264.3,1263.8,0.5906563]
[1760083837097,0.33247756,1264.3,1263.5,0.5906563]
[1760083837296,0.19483975,1263.7,1263.5,0.5906563]
[1760083837994,0.19483975,1263.7,1263.6,0.5906563]
[1760083838599,0.19483975,1263.7,1263.5,0.5906563]
[1760083839107,0.13763781,1264.3,1263.3,0.5906563]
[1760083839394,0.19611414,1263.4,1263.3,0.5906563]
[1760083848708,0.19611414,1263.4,1263.2,0.78669284]
[1760083849205,0.19611414,1263.5,1263.2,0.78669284]
[1760083850812,0.19611414,1263.4,1263.2,0.78669284]
[1760083851408,0.19611414,1263.6,1263.3,0.5906563]
[1760083851613,0.19611414,1263.7,1263.5,0.19644728]
[1760083852813,0.19611414,1263.7,1263.4,0.78710358]
[1760083855311,0.19611414,1263.7,1263.5,0.19644728]
[1760083855613,0.19611414,1263.7,1263.5,0.78710358]
[1760083857012,0.19611414,1264.2,1263.4,1.1749479]
[1760083857216,0.19611414,1264.2,1263.8,0.19636236]
[1760083857614,0.19611414,1264.0,1263.8,0.19636236]
[1760083858617,0.19611414,1264.1,1263.8,0.78544944]
[1760083862021,0.19611414,1264.1,1263.9,0.19636236]
[1760083862721,0.19611414,1264.1,1263.8,0.78544944]
[1760083863322,0.19611414,1264.1,1262.0,1.9582466]
[1760083863323,0.19611414,1264.1,1263.6,0.78544944]
[1760083863524,0.19611414,1264.1,1263.5,0.78544944]
[1760083863820,0.19611414,1263.7,1263.5,0.78544944]
[1760083864421,0.19611414,1263.7,1263.4,0.78544944]
[1760083865624,0.19611414,1263.9,1263.6,0.58908708]
[1760083865823,0.19611414,1264.0,1263.8,0.58908708]
[1760083866425,0.19611414,1264.0,1263.8,0.78544944]
[1760083866927,0.19611414,1264.0,1263.7,0.78544944]
[1760083870532,0.19611414,1263.9,1263.7,0.78544944]
[1760083871030,0.19611414,1263.9,1263.7,0.19636236]
[1760083871432,0.19611414,1263.9,1263.7,0.78544944]
[1760083871828,0.19611414,1263.9,1263.7,0.19636236]
[1760083873234,0.13763781,1264.3,1263.7,0.78544944]
[1760083873235,0.19611414,1264.0,1263.7,0.78544944]
[1760083873533,0.19611414,1264.0,1263.8,0.19636236]
[1760083877739,0.19611414,1264.0,1263.8,0.78544944]
[1760083879638,0.19611414,1264.0,1263.6,0.19636236]
[1760083879837,0.19611414,1264.0,1263.4,0.19636236]
[1760083880033,0.19611414,1263.7,1263.4,0.19636236]
[1760083881737,0.19611414,1263.7,1263.5,0.19636236]
[1760083882239,0.19611414,1263.9,1263.5,0.78544944]
[1760083882540,0.19611414,1263.9,1263.7,0.19639276]
[1760083883238,0.19611414,1263.9,1263.6,0.19639276]
[1760083884440,0.19611414,1263.9,1263.7,0.19639276]
[1760083888945,0.19611414,1263.9,1263.7,0.78547984]
[1760083891242,0.19611414,1263.9,1263.6,0.78547984]
[1760083891443,0.19611414,1263.8,1263.6,0.78547984]
[1760083891648,0.19611414,1263.8,1263.5,0.58908708]
[1760083891846,0.19611414,1263.8,1263.4,0.78547984]
[1760083892043,0.19611414,1263.6,1263.3,0.78547984]
[1760083895245,0.19611414,1263.6,1263.4,0.78547984]
[1760083895946,0.19611414,1263.6,1263.4,0.58908708]
[1760083896751,0.19611414,1263.6,1263.3,0.19639276]
[1760083896752,0.19611414,1263.6,1263.3,0.78547984]
[1760083896948,0.19611414,1263.5,1263.3,0.78547984]
[1760083897450,0.19611414,1263.4,1263.2,0.78547984]
[1760083898548,0.19611414,1263.4,1263.1,0.78547984]
[1760083898850,0.19611414,1263.4,1263.1,0.58908708]
[1760083899050,0.19611414,1263.2,1263.1,0.58908708]
[1760083899250,0.19611414,1263.2,1263.0,0.78547984]
[1760083902953,0.19611414,1263.3,1263.0,0.78547984]
[1760083903253,0.19611414,1263.3,1263.1,0.58908708]
[1760083903450,0.19611414,1263.3,1263.1,0.78547984]
[1760083903854,0.19611414,1263.3,1263.2,0.58908708]
[1760083904052,0.19611414,1263.4,1263.1,0.9818422]
[1760083904355,0.19611414,1263.5,1263.3,0.58982324]
[1760083905554,0.19611414,1263.5,1263.2,0.786216]
[1760083908458,0.19611414,1263.5,1263.3,0.58982324]
[1760083908659,0.19611414,1263.5,1263.3,0.786216]
[1760083909057,0.19611414,1263.6,1263.4,0.786216]
[1760083909258,0.19611414,1263.6,1263.3,0.786216]
[1760083909454,0.13763781,1264.3,1263.0,0.786216]
[1760083909654,0.19546453,1263.2,1263.0,0.786216]
[1760083913159,0.19546453,1263.3,1263.0,0.786216]
[1760083913357,0.19546453,1263.4,1263.1,0.58982324]
[1760083913562,0.19546453,1263.4,1263.2,0.58982324]
[1760083913857,0.19546453,1263.5,1263.3,0.786216]
[1760083914763,0.19546453,1263.5,1263.3,0.58982324]
[1760083915062,0.19546453,1263.5,1263.3,0.786216]
[1760083915559,0.19546453,1263.5,1263.3,0.78584658]
[1760083916758,0.19546453,1263.6,1263.3,0.78584658]
[1760083917164,0.19546453,1263.6,1263.4,0.58945382]
[1760083917361,0.19546453,1263.6,1263.4,0.78584658]
[1760083918364,0.19546453,1263.6,1263.5,0.58945382]
[1760083920264,0.19546453,1263.6,1263.4,0.78584658]
[1760083921270,0.19546453,1263.6,1263.5,0.58945382]
[1760083921772,0.19546453,1263.6,1263.4,0.78584658]
[1760083922473,0.19546453,1263.6,1263.3,0.78584658]
[1760083922768,0.19546453,1263.6,1263.3,0.58945382]
[1760083922968,0.19546453,1263.4,1263.2,0.78584658]
[1760083928780,0.19546453,1263.4,1262.9,0.19639276]
[1760083929078,0.19546453,1263.0,1262.8,0.78584658]
[1760083929379,0.19546453,1263.0,1262.8,0.19639276]
[1760083931179,0.19546453,1263.0,1262.8,0.78584658]
[1760083931879,0.19546453,1263.0,1262.8,0.19639276]
[1760083932476,0.19546453,1263.0,1262.7,0.78584658]
[1760083932681,0.19546453,1262.9,1262.7,0.78584658]
[1760083932981,0.19546453,1262.9,1262.6,0.78584658]
[1760083933681,0.19546453,1262.8,1262.6,0.78584658]
[1760083934778,0.19546453,1262.8,1262.6,0.19639276]
[1760083936385,0.19546453,1262.7,1262.5,0.19639276]
[1760083938985,0.19546453,1262.8,1262.6,0.58945382]
[1760083939480,0.19546453,1262.8,1262.6,0.78584658]
[1760083941582,0.19546453,1262.8,1262.6,0.19639276]
[1760083946886,0.19546453,1262.8,1262.5,0.58945382]
[1760083946887,0.19546453,1262.8,1262.5,0.19639276]
[1760083947084,0.19546453,1262.7,1262.4,0.19639276]
[1760083947381,0.19546453,1262.7,1262.4,0.78584658]
[1760083947583,0.19546453,1262.7,1262.5,0.19639276]
[1760083948185,0.19546453,1262.7,1262.4,0.78584658]
[1760083948787,0.19546453,1262.7,1262.5,0.19639276]
[1760083950385,0.19546453,1262.7,1262.4,0.58945382]
[1760083950386,0.19546453,1262.7,1262.4,0.78584658]
[1760083951189,0.19546453,1262.7,1262.4,0.19639276]
[1760083951392,0.19546453,1262.7,1262.4,0.78557149]
[1760083951688,0.19546453,1262.7,1262.4,0.19639276]
[1760083951992,0.92023563,1264.3,1262.2,0.78557149]
[1760083952192,0.19482506,1262.4,1262.2,0.78557149]
[1760083952393,0.19482506,1262.4,1262.2,0.19639276]
[1760083956287,0.13763781,1264.3,1262.2,0.19639276]
[1760083956288,0.19482506,1262.5,1262.2,0.19639276]
[1760083956793,0.19482506,1262.4,1262.0,0.19639276]
[1760083957195,0.19482506,1262.3,1262.0,0.19639276]
[1760083961194,0.19482506,1262.3,1262.0,0.78557149]
[1760083961398,0.19482506,1262.3,1262.1,0.19639276]
[1760083962594,0.19482506,1262.4,1262.1,0.78557149]
[1760083963000,0.19482506,1262.4,1262.2,0.19639276]
[1760083963201,0.19482506,1262.5,1262.2,0.78557149]
[1760083963402,0.19482506,1262.5,1262.3,0.19639276]
[1760083963797,0.19482506,1262.6,1262.3,0.78557149]
[1760083963996,0.19482506,1262.6,1262.4,0.19639276]
[1760083964398,0.19482506,1262.6,1262.3,0.19639276]
[1760083964799,0.19482506,1262.4,1262.2,0.19639276]
[1760083967799,0.19482506,1262.4,1262.1,0.19639276]
[1760083969401,0.19482506,1262.4,1262.1,0.78557149]
[1760083969599,0.19482506,1262.4,1262.1,0.19639276]
[1760083969803,0.19482506,1262.4,1262.0,0.19639276]
[1760083970099,0.19482506,1262.2,1262.0,0.19639276]
[1760083973702,0.19482506,1262.3,1262.0,0.19639276]
[1760083975503,0.19482506,1262.4,1262.2,0.19639276]
[1760083977810,0.19482506,1262.5,1262.2,0.78557149]
[1760083981208,0.19482506,1262.6,1262.3,0.58917873]
[1760083981407,0.19482506,1262.6,1262.4,0.19639276]
[1760083981610,0.19482506,1262.6,1262.4,0.78557149]
[1760083981808,0.19482506,1262.7,1262.4,0.19639276]
[1760083984211,0.19482506,1262.7,1262.5,0.58917873]
[1760083984410,0.19482506,1262.8,1262.5,0.78557149]
[1760083984715,0.19482506,1262.8,1262.6,0.58917873]
[1760083985216,0.19482506,1262.8,1262.5,0.78557149]
[1760083985515,0.19482506,1262.8,1262.6,0.58917873]
[1760083986515,0.19482506,1262.8,1262.6,0.78557149]
[1760083988012,0.19482506,1262.8,1262.7,0.58917873]
[1760083988218,0.19482506,1262.8,1262.5,0.78557149]
[1760083988711,0.19482506,1262.7,1262.5,0.78557149]
[1760083988916,0.19482506,1262.8,1262.5,0.78557149]
[1760083990421,0.19482506,1262.8,1262.6,0.58917873]
[1760083991119,0.19482506,1262.8,1262.5,0.19639276]
[1760083991120,0.19482506,1262.8,1262.5,0.78557149]
[1760083991821,0.19482506,1262.8,1262.6,0.58917873]
[1760083992016,0.19482506,1262.8,1262.5,0.78557149]
[1760083992318,0.19482506,1262.8,1262.6,0.58917873]
[1760083994518,0.19482506,1262.8,1262.7,0.58917873]
[1760083994718,0.19482506,1262.8,1262.5,0.19639276]
[1760083994719,0.19482506,1262.9,1262.5,0.9818422]
[1760083994918,0.19482506,1262.9,1262.8,0.59078183]
[1760083995722,0.19482506,1262.9,1262.7,0.59078183]
[1760083996820,0.19482506,1262.8,1262.7,0.59078183]
[1760083997325,0.19482506,1262.9,1262.7,0.59078183]
[1760083999622,0.19482506,1262.9,1262.6,0.78717459]
[1760083999926,0.19482506,1262.8,1262.6,0.59078183]
[1760084000221,0.19482506,1262.8,1262.5,0.78717459]
[1760084000424,0.19482506,1262.7,1262.5,0.78717459]
[1760084001421,0.19482506,1262.7,1262.6,0.59078183]
[1760084001825,0.19482506,1262.8,1262.6,0.59078183]
[1760084002723,0.19482506,1262.8,1262.6,0.78717459]
[1760084004328,0.19482506,1262.8,1262.7,0.59078183]
[1760084004525,0.19482506,1262.9,1262.7,0.59078183]
[1760084005523,0.19482506,1262.9,1262.6,0.19639276]
[1760084005524,0.19482506,1262.9,1262.8,0.59078183]
[1760084006725,0.19482506,1262.9,1262.7,0.59078183]
[1760084007028,0.19482506,1262.9,1262.5,0.78717459]
[1760084007226,0.19482506,1262.7,1262.5,0.78717459]
[1760084009432,0.19482506,1262.7,1262.6,0.59078183]
[1760084009831,0.19482506,1262.7,1262.5,0.78717459]
[1760084010334,0.19482506,1262.7,1262.6,0.59078183]
[1760084010932,0.19482506,1262.8,1262.6,0.59078183]
[1760084011135,0.19482506,1262.9,1262.7,0.59078183]
[1760084011435,0.19482506,1263.0,1262.8,0.59078183]
[1760084012037,0.19482506,1263.1,1262.9,0.78717459]
[1760084013241,0.19482506,1263.1,1263.0,0.59078183]
[1760084014439,0.19482506,1263.2,1263.0,0.59078183]
[1760084014640,0.19482506,1263.2,1263.0,0.78717459]
[1760084015345,0.19482506,1263.3,1263.0,0.9818422]
[1760084015545,0.19482506,1263.3,1263.2,0.58969273]
[1760084015944,0.33252387,1263.4,1263.1,0.19639276]
[1760084016245,0.33252387,1263.4,1263.3,0.58965014]
[1760084016446,0.33252387,1263.4,1263.2,0.7860429]
[1760084018347,0.33252387,1263.4,1263.2,0.19639276]
[1760084021854,0.19482506,1263.4,1263.2,0.19639276]
[1760084022150,0.19482506,1263.5,1263.2,0.19639276]
[1760084025057,0.19482506,1263.5,1263.3,0.58965014]
[1760084025653,0.19482506,1263.5,1263.3,0.19639276]
[1760084034267,0.19482506,1263.8,1263.3,0.9818422]
[1760084034466,0.19482506,1263.8,1261.5,1.9582466]
[1760084034467,0.19482506,1263.9,1263.7,0.19639276]
[1760084036270,0.13767593,1264.1,1263.7,0.7842881]
[1760084036271,0.19482506,1264.0,1263.7,0.7842881]
[1760084036470,0.19482506,1264.0,1263.7,0.19639276]
[1760084036870,0.19482506,1263.9,1263.4,0.19639276]
[1760084037364,0.19482506,1263.6,1263.4,0.19639276]
[1760084040374,0.19482506,1263.7,1263.5,0.19639276]
[1760084040871,0.19482506,1263.8,1263.5,0.7842881]
[1760084041471,0.19482506,1263.8,1263.6,0.19639276]
[1760084043884,0.19482506,1264.0,1263.6,0.7842881]
[1760084044182,0.19482506,1264.1,1263.9,0.19639276]
[1760084049681,0.19482506,1264.2,1263.9,0.19639276]
[1760084050181,0.19482506,1264.2,1264.0,0.19639276]
[1760084061612,0.19482506,1264.2,1263.9,0.19639276]
[1760084061821,0.19482506,1264.2,1263.8,0.19639276]
[1760084062003,0.19482506,1264.2,1263.7,0.19639276]
[1760084062208,0.19482506,1264.0,1263.7,0.19639276]
[1760084064204,0.19482506,1263.9,1263.7,0.19639276]
[1760084064507,0.19482506,1263.9,1263.6,0.19639276]
[1760084065304,0.19482506,1263.9,1263.7,0.19639276]
[1760084065906,0.19482506,1263.9,1263.6,0.19639276]
[1760084066405,0.19482506,1263.9,1263.5,0.19639276]
[1760084066708,0.19482506,1263.8,1263.5,0.19639276]
[1760084067005,0.19482506,1263.8,1263.4,0.19639276]
[1760084067208,0.19482506,1263.7,1263.4,0.19639276]
[1760084068910,0.19482506,1263.7,1263.5,0.19639276]
[1760084069910,0.19482506,1263.7,1263.4,0.19639276]
[1760084070211,0.19482506,1263.7,1263.3,0.19639276]
[1760084070410,0.19482506,1263.6,1263.3,0.19639276]
[1760084070807,0.19482506,1263.5,1263.3,0.19639276]
[1760084074517,0.19482506,1263.6,1263.3,0.19639276]
[1760084075014,0.19482506,1263.5,1263.3,0.7842881]
[1760084075915,0.19482506,1263.5,1263.0,0.7842881]
[1760084076117,0.13764217,1264.3,1263.0,0.7842881]
[1760084076118,0.19482506,1263.3,1263.0,0.7842881]
[1760084076813,0.19482506,1263.3,1262.7,0.78544944]
[1760084076814,0.19482506,1263.3,1262.9,0.7842881]
[1760084077214,0.19482506,1263.3,1263.0,0.58789534]
[1760084077420,0.19482506,1263.5,1263.2,0.7842881]
[1760084077815,0.19482506,1263.5,1263.3,0.7842881]
[1760084079018,0.19482506,1263.5,1263.3,0.19639276]
[1760084080118,0.19482506,1263.5,1263.2,0.7842881]
[1760084080319,0.19482506,1263.4,1263.2,0.19639276]
[1760084081221,0.19482506,1263.4,1263.1,0.19639276]
[1760084083016,0.19482506,1263.3,1263.0,0.19639276]
[1760084083521,0.19482506,1263.2,1263.0,0.19639276]
[1760084084621,0.19482506,1263.2,1263.0,0.7842881]
[1760084084917,0.13764217,1264.3,1263.0,0.7842881]
[1760084084918,0.19482506,1263.4,1263.1,0.58789534]
[1760084085217,0.19482506,1263.5,1263.2,0.7842881]
[1760084085718,0.19482506,1263.5,1263.3,0.19639276]
[1760084090325,0.19482506,1263.6,1263.3,0.7842881]
[1760084091828,0.19482506,1263.6,1263.1,0.7842881]
[1760084092021,0.19482506,1263.3,1263.1,0.7842881]
[1760084093523,0.19482506,1263.3,1263.1,0.19639276]
[1760084094429,0.13764217,1264.3,1263.1,0.19639276]
[1760084094430,0.19482506,1263.4,1263.1,0.19639276]
[1760084100426,0.19482506,1263.3,1263.1,0.19639276]
[1760084100625,0.19482506,1263.4,1263.1,0.19639276]
[1760084101030,0.19482506,1263.3,1263.1,0.19639276]
[1760084102027,0.19482506,1263.4,1263.1,0.19639276]
[1760084102227,0.19482506,1263.4,1263.2,0.19639276]
[1760084102426,0.19482506,1263.5,1263.2,0.7842881]
[1760084102625,0.19482506,1263.7,1263.4,0.58789534]
[1760084102828,0.19482506,1263.7,1263.5,0.78400051]
[1760084103026,0.19482506,1263.8,1263.5,0.78400051]
[1760084103429,0.19482506,1263.8,1263.6,0.78400051]
[1760084103829,0.19482506,1263.8,1263.6,0.19610517]
[1760084104327,0.19482506,1263.8,1263.6,0.78400051]
[1760084104830,0.19482506,1263.8,1263.6,0.19610517]
[1760084105733,0.19482506,1264.0,1263.7,0.58789534]
[1760084105931,0.19482506,1264.0,1263.8,0.19610517]
[1760084106234,0.19482506,1264.2,1263.9,0.58789534]
[1760084106433,0.19482506,1264.2,1263.9,0.78400051]
[1760084107432,0.19482506,1264.2,1264.0,0.19610517]
[1760084109335,0.33246723,1264.3,1264.0,0.78400051]
[1760084109528,0.19482506,1264.3,1264.1,0.19610517]
[1760084109733,0.33243457,1264.5,1264.2,0.58789534]
[1760084110234,0.33243457,1264.5,1264.3,0.19610517]
[1760084114643,0.13760951,1264.5,1264.3,0.78400051]
[1760084114838,0.13760951,1264.5,1264.4,0.19610517]
[1760084120638,0.19482506,1264.7,1264.3,0.58789534]
[1760084120842,0.3324041,1264.8,1264.5,0.19544125]
[1760084121338,0.3324041,1264.8,1264.6,0.19544125]
[1760084121740,0.19482506,1264.8,1264.6,0.19544125]
[1760084124346,0.33238996,1264.9,1264.6,0.19544125]
[1760084124548,0.33238996,1264.9,1264.7,0.19544125]
[1760084126850,0.19482506,1265.0,1264.7,0.19544125]
[1760084127046,0.19482506,1265.0,1264.5,0.58789534]
[1760084127047,0.19482506,1265.0,1264.8,0.19544125]
[1760084127248,0.33237583,1265.1,1264.8,0.19544125]
[1760084127551,0.13755077,1265.1,1264.9,0.19544125]
[1760084128247,0.13755077,1265.1,1265.0,0.19544125]
[1760084129753,0.13755077,1265.1,1264.9,0.19544125]
[1760084129953,0.19482506,1265.0,1264.8,0.19544125]
[1760084130752,0.19482506,1264.9,1264.7,0.19544125]
[1760084134854,0.19482506,1265.0,1264.8,0.19544125]
[1760084139961,0.13755077,1265.1,1264.5,0.58789534]
[1760084140161,0.13755077,1265.1,1265.0,0.19427632]
[1760084141657,0.19482506,1265.3,1264.6,0.58789534]
[1760084141860,0.33235571,1265.3,1265.1,0.19423661]
[1760084144263,0.13753065,1265.3,1265.1,0.19423661]
[1760084144761,0.33235571,1265.3,1265.1,0.19423661]
[1760084144965,0.33235571,1265.3,1264.9,0.19423661]
[1760084145463,0.19482506,1265.1,1264.9,0.19423661]
[1760084146366,0.19482506,1265.2,1264.9,0.19423661]
[1760084146966,0.19482506,1265.2,1265.0,0.19423661]
[1760084147365,0.13753065,1265.3,1265.0,0.19423661]
[1760084147564,0.13753065,1265.3,1265.1,0.19423661]
[1760084151669,0.13753065,1265.3,1265.2,0.19423661]
[1760084160576,0.13753065,1265.3,1264.9,0.58789534]
[1760084161181,0.13753065,1265.3,1265.0,0.58789534]
[1760084162180,0.13753065,1265.3,1264.7,0.78544944]
[1760084162379,0.13753065,1265.3,1265.0,0.58566805]
[1760084162581,0.19482506,1265.5,1265.0,0.58566805]
[1760084162784,0.19482506,1265.5,1265.3,0.19540566]
[1760084163081,0.33232202,1265.5,1265.3,0.19540566]
[1760084164478,0.13749696,1265.5,1265.3,0.19540566]
[1760084165379,0.13749696,1265.5,1265.4,0.78107371]
[1760084165879,0.13749696,1265.5,1265.4,0.58566805]
[1760084166182,0.13749696,1265.5,1265.3,0.58566805]
[1760084166380,0.19482506,1265.7,1265.4,0.58566805]
[1760084166578,0.33229595,1265.7,1265.5,0.19568515]
[1760084169183,0.19482506,1265.7,1265.5,0.19568515]
[1760084169381,0.19482506,1265.8,1265.5,0.19568515]
[1760084169681,0.33228726,1265.8,1265.6,0.19568515]
[1760084170184,0.19482506,1265.9,1265.6,0.19568515]
[1760084170480,0.19482506,1265.9,1265.7,0.19568515]
[1760084171682,0.33227152,1266.0,1265.7,0.19568515]
[1760084171885,0.33227152,1266.0,1265.8,0.19568515]
[1760084172082,0.19482506,1266.0,1265.8,0.19568515]
[1760084172886,0.33225415,1266.2,1265.9,0.19568515]
[1760084173485,0.33225415,1266.2,1265.9,0.7813532]
[1760084173786,0.19482506,1266.4,1266.1,0.58566805]
[1760084173985,0.33223082,1266.4,1266.2,0.19559532]
[1760084175482,2.6998009,1270.7,1266.0,0.58566805]
[1760084175483,0.19482506,1266.8,1266.3,0.58566805]
[1760084175683,0.13738568,1266.6,1266.4,0.19537482]
[1760084175986,0.33221074,1266.6,1266.4,0.19537482]
[1760084176187,0.13738568,1266.6,1266.4,0.19537482]
[1760084177784,0.19482506,1266.7,1266.4,0.19537482]
[1760084177983,0.19482506,1266.7,1266.5,0.19537482]
[1760084178287,0.33218255,1266.9,1266.5,0.19537482]
[1760084178488,0.33218255,1266.9,1266.6,0.19537482]
[1760084179088,0.33218255,1266.9,1266.7,0.19537482]
[1760084179384,0.19482506,1266.9,1266.7,0.19537482]
[1760084179586,0.19482506,1267.0,1266.8,0.19537482]
[1760084179787,0.19482506,1267.2,1266.8,0.19537482]
[1760084180286,0.19482506,1267.2,1267.0,0.19537482]
[1760084184491,0.13732524,1267.3,1267.0,0.19537482]
[1760084184492,0.3321503,1267.3,1267.0,0.19537482]
[1760084184790,0.3321503,1267.3,1267.1,0.19537482]
[1760084187196,0.13732524,1267.3,1267.1,0.19537482]
[1760084187395,0.19482506,1267.4,1267.1,0.19537482]
[1760084189403,0.19482506,1267.3,1266.9,0.19537482]
[1760084189698,0.19482506,1267.3,1266.8,0.19537482]
[1760084190003,0.19482506,1267.0,1266.8,0.19537482]
[1760084191205,0.19482506,1267.1,1266.8,0.19537482]
[1760084192503,0.19482506,1267.2,1266.8,0.19537482]
[1760084192707,0.19482506,1267.2,1267.0,0.19537482]
[1760084193510,0.19482506,1267.3,1267.0,0.19537482]
[1760084193709,0.19482506,1267.4,1267.1,0.19537482]
[1760084194204,0.19482506,1267.4,1267.2,0.19537482]
[1760084194710,0.3321186,1267.5,1267.2,0.19537482]
[1760084195006,0.19482506,1267.7,1267.2,0.19537482]
[1760084195306,0.33210127,1267.7,1267.4,0.19537482]
[1760084196210,0.33210127,1267.7,1267.3,0.19537482]
[1760084196509,0.19482506,1267.5,1267.3,0.19537482]
[1760084197107,0.19482506,1267.6,1267.3,0.19537482]
[1760084199512,0.19482506,1267.6,1267.4,0.19537482]
[1760084200910,0.19482506,1267.6,1267.3,0.19537482]
[1760084201412,0.19482506,1267.6,1267.4,0.19537482]
[1760084201614,0.19482506,1267.6,1267.3,0.19537482]
[1760084204317,0.19482506,1267.6,1267.4,0.19537482]
[1760084206916,0.19482506,1267.6,1267.3,0.19537482]
[1760084207420,0.19482506,1267.5,1267.3,0.19537482]
[1760084208117,0.19482506,1267.5,1267.2,0.19537482]
[1760084208318,0.19482506,1267.5,1267.1,0.19537482]
[1760084208520,0.19482506,1267.3,1267.0,0.19537482]
[1760084209020,0.19482506,1267.2,1267.0,0.19537482]
[1760084209820,0.19482506,1267.2,1266.8,0.19537482]
[1760084210316,0.19482506,1267.1,1266.8,0.19537482]
[1760084211219,0.19482506,1267.2,1266.8,0.19537482]
[1760084211521,0.19482506,1267.3,1267.0,0.19537482]
[1760084212017,0.19482506,1267.3,1267.1,0.19537482]
[1760084214625,0.19482506,1267.3,1266.9,0.19537482]
[1760084214826,0.19482506,1267.3,1266.6,0.19537482]
[1760084215125,0.19356347,1266.8,1266.6,0.19537482]
[1760084219327,0.19356347,1267.0,1266.6,0.19537482]
[1760084219623,0.19356347,1267.0,1266.8,0.19537482]
[1760084220427,0.19356347,1267.1,1266.8,0.19537482]
[1760084220625,0.19356347,1267.1,1266.9,0.19537482]
[1760084221024,0.19356347,1267.2,1266.9,0.19537482]
[1760084221225,0.19356347,1267.2,1267.0,0.19537482]
[1760084221726,0.19356347,1267.3,1267.1,0.19537482]
[1760084224129,0.19356347,1267.3,1267.0,0.19537482]
[1760084224426,0.19356347,1267.2,1267.0,0.19537482]
[1760084225831,0.19356347,1267.3,1267.0,0.19537482]
[1760084226227,0.19356347,1267.4,1267.2,0.19537482]
[1760084226429,0.19356347,1267.5,1267.2,0.19537482]
[1760084226633,0.19356347,1267.5,1267.3,0.19537482]
[1760084226834,0.19356347,1267.7,1267.3,0.19537482]
[1760084227229,0.19356347,1267.7,1267.4,0.19537482]
[1760084227732,0.19356347,1267.8,1267.6,0.19537482]
[1760084229333,0.19356347,1267.9,1267.6,0.19537482]
[1760084229529,0.19356347,1267.9,1267.5,0.58566805]
[1760084229530,0.19356347,1267.9,1267.7,0.19537482]
[1760084232434,0.19356347,1267.9,1267.3,0.19537482]
[1760084232630,0.19356347,1267.9,1267.2,0.19537482]
[1760084232934,0.19356347,1267.4,1267.2,0.19537482]
[1760084234734,0.19356347,1267.4,1267.1,0.78104287]
[1760084235035,0.13722533,1267.8,1266.9,0.19537482]
[1760084235233,0.19583065,1267.1,1266.9,0.19537482]
[1760084238634,0.19583065,1267.1,1266.8,0.19537482]
[1760084239536,0.19583065,1267.1,1266.8,0.78104287]
[1760084239735,0.19583065,1267.1,1266.9,0.58566805]
[1760084240035,0.19583065,1267.1,1267.0,0.58566805]
[1760084240335,0.19583065,1267.2,1266.9,0.19537482]
[1760084240533,0.19583065,1267.2,1267.1,0.58722573]
[1760084241232,0.19583065,1267.2,1267.0,0.78260055]
[1760084242635,0.19583065,1267.3,1267.1,0.58722573]
[1760084242933,0.19583065,1267.3,1267.1,0.78260055]
[1760084243132,0.19583065,1267.3,1267.2,0.58722573]
[1760084243432,0.19583065,1267.4,1267.1,0.78260055]
[1760084243634,0.19583065,1267.5,1267.2,0.58722573]
[1760084243832,0.19583065,1267.5,1267.3,0.78260055]
[1760084244635,0.19583065,1267.7,1267.3,0.98082426]